bitfinex-derivatives/quotes_SOLF0:USTF0_20241227
["timestamp","ask_amount","ask_price","bid_price","bid_amount"]
[1735301422758,30.19866464,191.21,191.14,8.42000665]
[1735301422964,32.81656464,191.21,191.17,2.6184]
[1735301423163,32.81656464,191.21,191.18,12.98733615]
[1735301423365,11.03790665,191.21,191.19,4.99512929]
[1735301423563,11.03790665,191.21,191.2,4.99512929]
[1735301424159,2.6182,191.19,191.14,8.42000665]
[1735301424361,2.6182,191.19,191.15,12.98941496]
[1735301424659,2.6179,191.21,191.18,2.6183]
[1735301424959,25.28215799,191.23,191.19,12.98683913]
[1735301425166,25.28215799,191.23,191.2,4.99592883]
[1735301425465,33.70216464,191.23,191.21,4.99592883]
[1735301425666,36.31976464,191.23,191.22,4.99405646]
[1735301426655,36.31976464,191.23,191.18,2.6183]
[1735301426656,2.6178,191.22,191.18,2.6183]
[1735301426860,2.6178,191.22,191.19,12.98096332]
[1735301427162,2.6178,191.22,191.2,12.98096332]
[1735301427467,3.5035,191.23,191.11,11.50000665]
[1735301427666,8.42000665,191.19,191.11,11.50000665]
[1735301427865,2.6186,191.16,191.12,15.60426702]
[1735301428063,8.42000665,191.19,191.12,12.98526702]
[1735301428365,8.42000665,191.19,191.14,6.49748481]
[1735301428566,2.6181,191.2,191.14,6.49748481]
[1735301428965,8.42000665,191.21,191.13,8.42000665]
[1735301428966,8.42000665,191.21,191.15,2.6187]
[1735301429266,2.6182,191.19,191.15,2.6187]
[1735301432170,2.6183,191.18,191.16,4.99278336]
[1735301432667,8.42000665,191.19,191.16,12.98123674]
[1735301433062,2.6183,191.18,191.16,12.98123674]
[1735301434564,4.5383,191.18,191.16,12.98123674]
[1735301434770,4.5383,191.18,191.13,2.6189]
[1735301434973,4.5383,191.18,191.14,4.09442262]
[1735301435169,4.5383,191.18,191.15,4.09442262]
[1735301435370,2.6184,191.17,191.13,2.6189]
[1735301435570,8.42000665,191.17,191.14,4.09525596]
[1735301435770,8.42000665,191.17,191.1,14.11940665]
[1735301436071,2.6187,191.16,191.11,4.09574778]
[1735301436272,2.6187,191.16,191.12,4.09574778]
[1735301436473,2.6187,191.16,191.13,23.57852506]
[1735301436673,2.6187,191.16,191.14,17.08094872]
[1735301436873,2.6187,191.16,191.15,12.98520094]
[1735301437967,2.6184,191.17,191.12,8.42000665]
[1735301438162,2.6184,191.17,191.14,6.49822313]
[1735301438367,2.6184,191.17,191.15,17.08105384]
[1735301438564,1.92,191.18,191.16,12.98556076]
[1735301438768,1.92,191.18,191.17,12.98556076]
[1735301439371,4.5383,191.18,191.17,12.98556076]
[1735301440078,1.92,191.18,191.17,12.98556076]
[1735301441065,1.92,191.18,191.14,2.6187]
[1735301441272,1.92,191.18,191.15,17.08187237]
[1735301441470,1.92,191.18,191.16,17.08187237]
[1735301441669,1.92,191.18,191.17,12.98639621]
[1735301441865,4.5383,191.18,191.17,12.98639621]
[1735301442575,4.5383,191.18,191.17,17.08135952]
[1735301442576,1.92,191.18,191.17,17.08135952]
[1735301443171,1.92,191.18,191.17,19.69975952]
[1735301443569,1.92,191.18,191.17,26.19776107]
[1735301444469,1.92,191.18,191.17,7.61316777]
[1735301444672,1.92,191.18,191.17,17.07692579]
[1735301444875,1.92,191.18,191.17,23.57290735]
[1735301446367,1.92,191.18,191.17,23.57836497]
[1735301447067,1.92,191.18,191.17,23.58109518]
[1735301450076,1.92,191.18,191.17,18.57505689]
[1735301450281,1.92,191.18,191.17,23.56632389]
[1735301452579,1.92,191.18,191.17,19.69141242]
[1735301453178,1.92,191.18,191.17,19.69104079]
[1735301454084,1.92,191.18,191.17,26.18416655]
[1735301454279,1.92,191.18,191.17,23.56576655]
[1735301454586,1.92,191.18,191.17,17.07264079]
[1735301455277,1.92,191.18,191.17,12.97692258]
[1735301455984,1.92,191.18,191.17,17.06983939]
[1735301456480,1.92,191.18,191.17,23.56296515]
[1735301456878,1.92,191.18,191.17,17.06983939]
[1735301458189,1.92,191.18,191.17,23.56296515]
[1735301458982,1.92,191.18,191.17,4.09379296]
[1735301459182,21.77865799,191.24,191.23,2.6176]
[1735301459390,21.77865799,191.24,191.23,37.72201921]
[1735301460085,21.77865799,191.24,191.23,31.23243748]
[1735301460287,24.39515799,191.31,191.25,2.6173]
[1735301460588,24.39515799,191.31,191.26,17.07483083]
[1735301460882,21.77865799,191.31,191.27,17.07483083]
[1735301461085,21.77865799,191.31,191.28,16.10103787]
[1735301461288,21.77865799,191.31,191.29,17.06345375]
[1735301461491,21.77865799,191.33,191.3,12.98103787]
[1735301461691,30.19866464,191.33,191.31,4.99270687]
[1735301461885,30.19866464,191.33,191.27,3.12]
[1735301462089,30.19866464,191.33,191.28,12.95000827]
[1735301462395,8.42000665,191.33,191.29,12.95000827]
[1735301462592,8.42000665,191.33,191.3,4.98077241]
[1735301462895,8.42000665,191.33,191.27,3.12]
[1735301463097,8.42000665,191.33,191.28,12.94142139]
[1735301463298,8.42000665,191.33,191.29,4.97746976]
[1735301463500,4.7677,191.34,191.3,4.9742513]
[1735301463501,8.42000665,191.31,191.3,4.9742513]
[1735301464395,8.42000665,191.31,191.27,3.12]
[1735301464697,8.42000665,191.33,191.28,4.97345376]
[1735301464996,8.42000665,191.33,191.29,4.97345376]
[1735301465188,8.42000665,191.31,191.26,3.12]
[1735301465394,8.42000665,191.31,191.27,12.93186668]
[1735301465697,8.42000665,191.31,191.28,4.97379488]
[1735301465897,8.42000665,191.31,191.26,3.12]
[1735301466098,8.42000665,191.31,191.27,4.97445305]
[1735301466397,8.42000665,191.31,191.28,4.97445305]
[1735301466599,8.42000665,191.31,191.26,3.12]
[1735301466900,8.42000665,191.31,191.27,4.97330852]
[1735301467190,8.42000665,191.31,191.28,4.97285954]
[1735301467391,8.42000665,191.31,191.26,3.12]
[1735301467695,8.42000665,191.31,191.27,4.97397294]
[1735301467896,8.42000665,191.31,191.26,3.12]
[1735301468196,8.42000665,191.31,191.27,4.97404778]
[1735301468396,8.42000665,191.31,191.26,3.12]
[1735301468598,8.42000665,191.31,191.27,4.97333659]
[1735301468796,8.42000665,191.31,191.26,3.12]
[1735301469001,8.42000665,191.31,191.27,4.97333659]
[1735301469199,4.7677,191.34,191.22,7.95926101]
[1735301469200,8.42000665,191.29,191.22,7.95926101]
[1735301469399,4.7677,191.34,191.23,4.97524974]
[1735301469400,8.42000665,191.26,191.23,4.97524974]
[1735301469597,8.42000665,191.26,191.24,4.97524974]
[1735301469898,8.42000665,191.26,191.25,4.97465101]
[1735301470093,8.42000665,191.26,191.21,3.12]
[1735301470299,8.42000665,191.26,191.22,12.93371544]
[1735301470593,8.42000665,191.26,191.21,3.12]
[1735301470800,8.42000665,191.26,191.22,12.93603246]
[1735301470997,8.42000665,191.29,191.23,15.55308884]
[1735301471191,8.42000665,191.29,191.24,4.9753971]
[1735301471395,8.42000665,191.29,191.25,4.97442719]
[1735301471596,8.42000665,191.29,191.22,8.42000665]
[1735301471899,8.42000665,191.29,191.23,12.93325309]
[1735301472202,8.42000665,191.29,191.24,15.55075309]
[1735301472392,8.42000665,191.29,191.24,2.6175]
[1735301472595,8.42000665,191.29,191.25,4.9729685]
[1735301472796,8.42000665,191.29,191.26,4.9729685]
[1735301472997,8.42000665,191.29,191.24,2.6175]
[1735301473197,8.42000665,191.29,191.25,4.97195663]
[1735301473396,8.42000665,191.29,191.26,4.97195663]
[1735301473596,8.42000665,191.29,191.24,2.6175]
[1735301473801,8.42000665,191.29,191.25,4.97219901]
[1735301474005,8.42000665,191.29,191.26,4.97219901]
[1735301474194,8.42000665,191.27,191.22,2.6176]
[1735301474400,8.42000665,191.27,191.23,12.92852528]
[1735301474601,8.42000665,191.29,191.24,4.97250972]
[1735301474800,8.42000665,191.29,191.25,4.97250972]
[1735301475002,8.42000665,191.27,191.21,3.12]
[1735301475299,8.42000665,191.27,191.22,12.93042401]
[1735301475495,8.42000665,191.27,191.23,12.93042401]
[1735301475699,8.42000665,191.27,191.24,4.97324]
[1735301475896,8.42000665,191.29,191.25,4.97324]
[1735301476099,8.42000665,191.29,191.22,8.42000665]
[1735301476303,8.42000665,191.29,191.23,15.54773621]
[1735301476602,8.42000665,191.29,191.24,4.97312931]
[1735301476799,8.42000665,191.29,191.25,4.97312931]
[1735301477000,8.42000665,191.29,191.22,2.6177]
[1735301477199,8.42000665,191.29,191.23,12.92986916]
[1735301477403,8.42000665,191.29,191.24,4.9730266]
[1735301477604,8.42000665,191.29,191.22,2.6177]
[1735301477605,8.42000665,191.29,191.25,4.9730266]
[1735301477806,8.42000665,191.29,191.22,2.6177]
[1735301478005,8.42000665,191.29,191.23,12.93037492]
[1735301478204,8.42000665,191.29,191.24,4.97322112]
[1735301478399,8.42000665,191.29,191.25,4.97322112]
[1735301478599,8.42000665,191.29,191.22,2.6177]
[1735301478802,8.42000665,191.29,191.23,12.93194183]
[1735301479002,8.42000665,191.29,191.24,12.93162474]
[1735301479199,8.42000665,191.29,191.22,2.6177]
[1735301479506,8.42000665,191.29,191.23,12.93163]
[1735301479707,8.42000665,191.29,191.24,12.93111775]
[1735301479905,8.42000665,191.29,191.25,4.97350683]
[1735301480105,8.42000665,191.29,191.26,4.97350683]
[1735301480302,8.42000665,191.29,191.21,11.54000665]
[1735301480496,8.42000665,191.29,191.22,15.54943065]
[1735301480700,8.42000665,191.27,191.23,12.93173065]
[1735301480907,8.42000665,191.27,191.24,4.97374256]
[1735301481108,8.42000665,191.27,191.25,4.97374256]
[1735301481408,8.42000665,191.27,191.21,5.7379]
[1735301481607,8.42000665,191.27,191.22,12.93460673]
[1735301481909,8.42000665,191.27,191.23,12.93460673]
[1735301482111,8.42000665,191.27,191.22,2.6177]
[1735301482408,8.42000665,191.27,191.23,12.93075308]
[1735301482606,8.42000665,191.27,191.24,12.93075308]
[1735301482808,8.42000665,191.29,191.25,12.92819977]
[1735301483006,8.42000665,191.29,191.26,4.97336657]
[1735301483205,8.42000665,191.29,191.23,2.6176]
[1735301483411,8.42000665,191.29,191.24,12.92790681]
[1735301483706,8.42000665,191.29,191.25,4.97227185]
[1735301483907,8.42000665,191.29,191.26,4.97227185]
[1735301484115,8.42000665,191.29,191.23,2.6176]
[1735301484310,8.42000665,191.29,191.24,12.92993724]
[1735301484510,8.42000665,191.29,191.25,4.97305278]
[1735301484699,8.42000665,191.29,191.26,4.97305278]
[1735301484905,8.42000665,191.29,191.23,2.6176]
[1735301485312,8.42000665,191.29,191.24,12.93181846]
[1735301485515,8.42000665,191.29,191.25,4.97377633]
[1735301485702,8.42000665,191.29,191.26,4.97377633]
[1735301485903,8.42000665,191.29,191.27,4.97377633]
[1735301486107,8.42000665,191.29,191.28,4.97377633]
[1735301486807,8.42000665,191.29,191.24,2.6175]
[1735301487008,8.42000665,191.29,191.25,12.93159356]
[1735301487210,8.42000665,191.29,191.26,4.97368983]
[1735301487409,8.42000665,191.29,191.27,4.97368983]
[1735301487610,8.42000665,191.29,191.24,2.6175]
[1735301487811,8.42000665,191.29,191.25,12.93413415]
[1735301488013,8.42000665,191.29,191.26,4.97466698]
[1735301488206,8.42000665,191.29,191.27,4.97508915]
[1735301488402,8.42000665,191.29,191.24,2.6175]
[1735301488603,8.42000665,191.27,191.25,12.93518479]
[1735301488805,21.77865799,191.33,191.11,1.1484]
[1735301488806,8.42000665,191.25,191.19,6.47318216]
[1735301489007,8.42000665,191.23,191.2,12.94443621]
[1735301489213,11.03770665,191.23,191.21,4.97862931]
[1735301489412,11.03770665,191.23,191.22,4.97862931]
[1735301489612,8.42000665,191.23,191.18,2.6183]
[1735301489811,2.6178,191.22,191.19,12.94739556]
[1735301490014,2.6178,191.22,191.18,2.6183]
[1735301490015,2.6178,191.22,191.2,12.94739556]
[1735301490215,2.6178,191.22,191.21,4.97976752]
[1735301490407,2.6178,191.22,191.18,2.6183]
[1735301490609,2.6178,191.22,191.19,12.73875476]
[1735301490907,2.6178,191.22,191.2,4.89952106]
[1735301491111,2.6178,191.22,191.18,2.6183]
[1735301491316,2.6178,191.22,191.19,12.73775849]
[1735301491514,2.6178,191.22,191.2,12.73775849]
[1735301491715,2.6178,191.22,191.21,4.89906647]
[1735301492111,8.42000665,191.23,191.21,4.89906647]
[1735301492310,11.03760665,191.23,191.19,2.6182]
[1735301492513,11.03760665,191.23,191.2,12.73767537]
[1735301492514,2.6176,191.23,191.2,12.73767537]
[1735301492716,2.6176,191.23,191.21,4.89910591]
[1735301493015,2.6176,191.23,191.19,2.6182]
[1735301493212,2.6176,191.23,191.2,12.73805934]
[1735301493418,2.6176,191.23,191.21,4.89925359]
[1735301493615,3.0808,191.25,191.17,11.52000665]
[1735301493820,1.5285,191.25,191.19,8.42000665]
[1735301494113,1.5285,191.25,191.2,12.73836432]
[1735301494318,1.5285,191.25,191.21,12.73761801]
[1735301494616,1.5285,191.25,191.22,4.89908385]
[1735301494817,2.6175,191.24,191.23,4.89908385]
[1735301495220,1.5285,191.25,191.23,4.89908385]
[1735301495521,4.1459,191.25,191.21,2.6179]
[1735301495812,1.6807,191.26,191.22,7.51792543]
[1735301496020,1.6807,191.26,191.23,4.90022543]
[1735301496215,1.6807,191.26,191.24,12.73957758]
[1735301496414,30.19866464,191.29,191.25,4.90022543]
[1735301496616,30.19866464,191.29,191.22,3.1]
[1735301496813,30.19866464,191.29,191.23,12.7393339]
[1735301497016,30.19866464,191.29,191.24,12.7393339]
[1735301497210,30.19866464,191.29,191.22,3.1]
[1735301497211,8.42000665,191.29,191.22,3.1]
[1735301497420,2.617,191.28,191.24,2.6175]
[1735301497615,2.617,191.28,191.25,4.89987273]
[1735301497817,2.617,191.28,191.26,4.89984476]
[1735301498017,2.617,191.28,191.24,2.6175]
[1735301498224,2.617,191.28,191.25,12.74006552]
[1735301498424,2.617,191.28,191.24,2.6175]
[1735301498425,2.617,191.28,191.26,4.9000252]
[1735301498624,2.617,191.28,191.24,2.6175]
[1735301498817,2.617,191.28,191.25,4.90129675]
[1735301499021,2.617,191.28,191.26,4.90129675]
[1735301499218,2.617,191.28,191.24,2.6175]
[1735301499417,2.617,191.28,191.25,12.74698288]
[1735301499725,2.617,191.28,191.26,4.90268572]
[1735301500028,5.809,191.3,191.27,4.90268572]
[1735301500233,14.22900665,191.3,191.26,2.6172]
[1735301500524,14.22900665,191.3,191.27,4.90344279]
[1735301500721,14.22900665,191.3,191.26,2.6172]
[1735301500924,14.22900665,191.3,191.27,4.90307315]
[1735301501126,14.22900665,191.3,191.28,4.90307315]
[1735301501328,14.22900665,191.3,191.26,2.6172]
[1735301501527,14.22900665,191.3,191.27,4.90402117]
[1735301501824,14.22900665,191.3,191.28,4.90402117]
[1735301502031,14.22900665,191.3,191.26,2.6172]
[1735301502330,14.22900665,191.3,191.27,4.90407517]
[1735301502529,14.22900665,191.3,191.28,4.90407517]
[1735301502736,14.22900665,191.3,191.26,2.6172]
[1735301502930,14.22900665,191.3,191.27,4.90569783]
[1735301503229,14.22900665,191.3,191.26,2.6172]
[1735301503429,14.22900665,191.3,191.28,4.90771874]
[1735301503621,14.22900665,191.3,191.26,2.6172]
[1735301503826,11.61220665,191.3,191.27,12.76149823]
[1735301504021,2.6169,191.29,191.28,4.90826855]
[1735301506133,2.6169,191.29,191.25,2.6173]
[1735301506433,2.6169,191.29,191.26,12.77005122]
[1735301506628,2.6169,191.29,191.27,12.77005122]
[1735301506830,2.6169,191.29,191.28,4.91155816]
[1735301507531,2.6171,191.27,191.23,3.1]
[1735301507830,2.6171,191.27,191.24,12.77220729]
[1735301508030,2.6171,191.27,191.25,12.77220729]
[1735301508234,2.6171,191.27,191.26,4.91238742]
[1735301508731,2.617,191.28,191.26,4.91238742]
[1735301508931,2.617,191.28,191.27,4.91238742]
[1735301509432,2.6168,191.29,191.27,4.91238742]
[1735301509632,2.6168,191.29,191.28,4.91327437]
[1735301513939,11.61220665,191.3,191.24,2.6174]
[1735301514140,11.03700665,191.28,191.25,7.86707003]
[1735301514337,11.03700665,191.28,191.26,7.86707003]
[1735301514537,11.03700665,191.28,191.24,2.6174]
[1735301514738,11.03700665,191.28,191.25,7.81601758]
[1735301514943,11.03700665,191.28,191.26,7.81583993]
[1735301515235,11.03700665,191.28,191.22,3.1]
[1735301515236,2.6168,191.29,191.27,7.81471993]
[1735301515436,2.6168,191.29,191.25,2.6173]
[1735301515634,2.6168,191.29,191.26,7.81587171]
[1735301515835,2.6168,191.29,191.25,2.6173]
[1735301515836,2.6168,191.29,191.27,7.81548345]
[1735301516038,2.6168,191.29,191.25,2.6173]
[1735301516238,2.6168,191.29,191.26,7.81367398]
[1735301516541,2.6168,191.29,191.27,7.81367398]
[1735301516741,2.6168,191.29,191.25,2.6173]
[1735301517043,2.6168,191.29,191.26,7.81327694]
[1735301517241,2.6168,191.29,191.27,7.81327694]
[1735301517433,2.6168,191.29,191.25,2.6173]
[1735301517634,2.6168,191.29,191.26,7.81323063]
[1735301517839,2.6168,191.29,191.27,7.81323063]
[1735301518040,2.6168,191.29,191.25,2.6173]
[1735301518340,2.6168,191.29,191.26,7.81313838]
[1735301518541,2.6168,191.29,191.27,7.81313838]
[1735301518742,2.6168,191.29,191.25,2.6173]
[1735301518942,2.6168,191.29,191.26,7.81331473]
[1735301519141,2.6168,191.29,191.27,7.81331473]
[1735301519343,2.6168,191.29,191.25,2.6173]
[1735301519546,2.6168,191.29,191.26,7.81294105]
[1735301519739,2.6168,191.29,191.27,7.81294105]
[1735301519941,2.6168,191.29,191.25,2.6173]
[1735301520243,2.6168,191.29,191.26,11.9164603]
[1735301520437,10.04850665,191.3,191.27,7.81770216]
[1735301520741,10.04850665,191.3,191.22,3.1]
[1735301520941,10.04850665,191.3,191.23,11.91748313]
[1735301521143,10.04850665,191.3,191.24,11.91748313]
[1735301521341,10.04850665,191.3,191.25,11.91748313]
[1735301521540,10.04850665,191.3,191.26,11.91748313]
[1735301521745,10.04850665,191.3,191.27,7.81837302]
[1735301522041,10.04850665,191.3,191.22,3.1]
[1735301522231,10.04850665,191.3,191.23,11.91763307]
[1735301522436,2.6168,191.29,191.25,2.6173]
[1735301522643,10.04850665,191.3,191.26,7.81847092]
[1735301522843,8.42000665,191.28,191.2,3.04]
[1735301523144,11.03730665,191.26,191.21,14.53982267]
[1735301523442,11.03730665,191.26,191.22,11.92790384]
[1735301523743,11.03730665,191.26,191.23,11.92790384]
[1735301523945,8.42000665,191.26,191.23,7.74958582]
[1735301524140,8.42000665,191.26,191.24,7.74958582]
[1735301524341,8.42000665,191.26,191.2,3.04]
[1735301524545,8.42000665,191.26,191.21,11.85597657]
[1735301524745,8.42000665,191.26,191.22,14.47357657]
[1735301524946,11.03720665,191.26,191.23,11.85597657]
[1735301525246,11.03720665,191.26,191.24,7.7511653]
[1735301525444,11.03720665,191.26,191.22,2.6176]
[1735301525745,11.03720665,191.26,191.23,11.85506614]
[1735301525946,11.03720665,191.26,191.24,12.5957921]
[1735301526146,11.03720665,191.26,191.25,4.84522169]
[1735301526342,11.03720665,191.26,191.22,2.6176]
[1735301526646,11.03720665,191.26,191.23,16.70489829]
[1735301526945,11.03720665,191.26,191.24,12.59891669]
[1735301527146,11.03720665,191.26,191.25,4.84573885]
[1735301530741,2.618,191.21,191.13,3.04]
[1735301530941,8.42000665,191.2,191.16,2.6185]
[1735301531136,8.42000665,191.2,191.17,11.7511844]
[1735301531336,8.42000665,191.2,191.18,7.65355534]
[1735301531542,8.42000665,191.2,191.16,2.6185]
[1735301531744,8.42000665,191.2,191.17,11.7522326]
[1735301532039,8.42000665,191.2,191.16,2.6185]
[1735301532445,11.03800665,191.2,191.17,11.75296495]
[1735301532634,11.03800665,191.2,191.16,2.6185]
[1735301532840,11.03800665,191.2,191.17,11.75105288]
[1735301533036,11.03800665,191.2,191.16,2.6185]
[1735301533235,11.03800665,191.2,191.17,7.65408451]
[1735301533447,11.03800665,191.2,191.16,2.6185]
[1735301533639,11.03800665,191.2,191.17,7.65319136]
[1735301533839,11.03800665,191.2,191.16,2.6185]
[1735301534042,30.19866464,191.24,191.2,2.618]
[1735301534245,8.42000665,191.24,191.2,2.618]
[1735301535041,8.42000665,191.24,191.21,7.64917514]
[1735301535247,8.42000665,191.24,191.2,2.618]
[1735301535445,2.6174,191.25,191.21,7.65027554]
[1735301535744,2.6172,191.27,191.22,7.65027554]
[1735301535948,2.6172,191.27,191.23,11.74179141]
[1735301536146,2.6172,191.27,191.24,7.64756841]
[1735301536345,2.6172,191.27,191.21,8.42000665]
[1735301536540,2.6172,191.27,191.22,11.73907831]
[1735301536848,2.6172,191.27,191.23,11.73907831]
[1735301537046,2.6172,191.27,191.24,11.73907831]
[1735301537245,2.6172,191.27,191.22,2.6177]
[1735301537446,2.6172,191.27,191.23,11.74308011]
[1735301537649,2.6172,191.26,191.24,7.64823345]
[1735301537852,11.03720665,191.26,191.21,2.6179]
[1735301538044,8.42000665,191.26,191.22,4.09519958]
[1735301538245,8.42000665,191.26,191.19,3.2706]
[1735301538549,8.42000665,191.24,191.2,4.09565042]
[1735301538747,8.42000665,191.24,191.21,4.09565042]
[1735301539049,8.42000665,191.24,191.17,11.46000665]
[1735301539351,8.42000665,191.24,191.18,4.09642643]
[1735301539547,2.6176,191.23,191.19,4.09642643]
[1735301539750,2.6176,191.23,191.2,4.09642643]
[1735301539948,2.6179,191.22,191.17,5.6584]
[1735301540150,2.6179,191.22,191.18,4.09763202]
[1735301540352,2.6179,191.22,191.17,5.6584]
[1735301540552,2.6179,191.22,191.18,4.09727867]
[1735301540754,2.6179,191.22,191.17,5.6584]
[1735301541050,2.6179,191.22,191.18,4.09511411]
[1735301541250,2.6179,191.22,191.18,2.6183]
[1735301541551,2.6179,191.22,191.19,4.09441023]
[1735301541751,2.6179,191.22,191.18,2.6183]
[1735301541945,2.6179,191.22,191.19,4.09338419]
[1735301542149,2.6179,191.22,191.18,2.6183]
[1735301542349,2.6179,191.22,191.19,4.09285087]
[1735301542549,2.6179,191.22,191.18,2.6183]
[1735301542750,2.6179,191.22,191.19,8.81296394]
[1735301542948,2.6179,191.22,191.2,8.81296394]
[1735301543149,2.6179,191.22,191.21,4.71982623]
[1735301544354,2.6179,191.22,191.18,2.6183]
[1735301544550,2.6179,191.22,191.19,8.809042]
[1735301544750,2.6179,191.22,191.2,8.809042]
[1735301544945,2.6179,191.22,191.21,4.71770368]
[1735301545151,2.6181,191.2,191.15,2.6186]
[1735301545352,11.03810665,191.2,191.16,8.81089946]
[1735301545549,8.42000665,191.2,191.17,8.81089946]
[1735301545752,8.42000665,191.2,191.18,4.71879586]
[1735301545953,8.42000665,191.2,191.15,2.6186]
[1735301546148,8.42000665,191.2,191.16,8.81232993]
[1735301546455,11.03800665,191.2,191.17,4.71907961]
[1735301546653,11.03800665,191.2,191.18,4.71907961]
[1735301546852,11.03800665,191.2,191.16,2.6186]
[1735301547053,11.03800665,191.2,191.17,4.72145181]
[1735301547252,11.03800665,191.2,191.18,4.72145181]
[1735301547556,11.03800665,191.2,191.16,2.6186]
[1735301547854,11.03800665,191.2,191.17,4.72084586]
[1735301548054,11.03800665,191.2,191.16,2.6186]
[1735301548254,11.03800665,191.2,191.17,4.72070071]
[1735301548454,11.03800665,191.2,191.16,2.6186]
[1735301548652,11.03800665,191.2,191.17,4.71996708]
[1735301548854,11.03800665,191.2,191.16,2.6186]
[1735301549455,11.03800665,191.2,191.17,4.71843787]
[1735301549649,11.03800665,191.2,191.16,2.6186]
[1735301549849,11.03800665,191.2,191.17,4.7186072]
[1735301550051,11.03800665,191.2,191.16,2.6186]
[1735301550252,11.03800665,191.2,191.17,4.71807401]
[1735301550449,8.42000665,191.2,191.13,3.04]
[1735301550757,2.6182,191.19,191.14,11.428878]
[1735301550952,2.6182,191.19,191.15,4.71831109]
[1735301551152,2.6182,191.19,191.16,4.71840765]
[1735301551352,2.6182,191.19,191.14,2.6187]
[1735301551553,2.6182,191.19,191.15,7.33639223]
[1735301551749,2.6182,191.19,191.16,4.71769223]
[1735301552050,2.6182,191.19,191.17,4.71769223]
[1735301552355,2.6182,191.19,191.15,2.6187]
[1735301552553,2.6182,191.19,191.16,4.71719553]
[1735301552754,8.42000665,191.2,191.17,4.71719553]
[1735301552956,11.03800665,191.2,191.18,4.71659124]
[1735301553151,11.03800665,191.2,191.16,2.6185]
[1735301553356,11.03800665,191.2,191.17,4.71600176]
[1735301553555,11.03800665,191.2,191.18,4.71600176]
[1735301553757,11.03800665,191.2,191.16,2.6185]
[1735301554056,11.03800665,191.2,191.17,4.71572535]
[1735301554256,11.03800665,191.2,191.18,4.71572535]
[1735301554458,2.6182,191.19,191.15,2.6187]
[1735301554660,2.6182,191.19,191.16,8.80492907]
[1735301554954,2.6182,191.19,191.17,4.71553162]
[1735301555155,2.6182,191.19,191.18,4.71553162]
[1735301556058,2.6183,191.18,191.14,6.71204603]
[1735301556259,11.03830665,191.18,191.15,8.81364136]
[1735301556459,11.03830665,191.18,191.16,4.72040334]
[1735301556660,11.03830665,191.18,191.14,2.6188]
[1735301556959,1.5902,191.24,191.13,3.04]
[1735301556960,11.03860665,191.16,191.13,3.04]
[1735301557152,11.03860665,191.16,191.14,4.72122107]
[1735301557359,11.03860665,191.16,191.13,3.04]
[1735301557558,11.03860665,191.16,191.14,4.71988456]
[1735301557851,11.03860665,191.16,191.12,2.6191]
[1735301558053,11.03860665,191.16,191.13,4.71987964]
[1735301558248,11.03860665,191.16,191.14,4.71987964]
[1735301558452,11.03860665,191.16,191.12,2.6191]
[1735301558652,11.03860665,191.16,191.13,4.71941261]
[1735301558848,8.42000665,191.16,191.14,4.71941261]
[1735301559050,8.42000665,191.16,191.1,3.04]
[1735301559250,8.42000665,191.16,191.11,8.81204088]
[1735301559450,21.77865799,191.22,191.13,8.42000665]
[1735301559654,30.19866464,191.22,191.15,8.42000665]
[1735301559853,30.19866464,191.22,191.16,11.85007806]
[1735301560059,8.42000665,191.22,191.17,8.8084484]
[1735301560257,2.6179,191.21,191.18,4.71936583]
[1735301560463,2.6179,191.21,191.15,8.42000665]
[1735301560656,8.42000665,191.2,191.16,4.71650688]
[1735301560962,8.42000665,191.18,191.17,4.71650688]
[1735301561264,11.03840665,191.18,191.17,4.71753106]
[1735301561455,11.03840665,191.18,191.14,3.04]
[1735301561854,2.6184,191.17,191.15,4.71587459]
[1735301562061,2.6184,191.17,191.16,4.71587459]
[1735301562964,8.42000665,191.18,191.16,4.71587459]
[1735301563162,11.03830665,191.18,191.14,3.04]
[1735301563361,11.03830665,191.18,191.15,4.71613656]
[1735301565364,11.03830665,191.18,191.15,8.80680666]
[1735301565554,11.03830665,191.18,191.14,5.6588]
[1735301565758,11.03830665,191.18,191.15,8.80780974]
[1735301565961,11.03830665,191.18,191.16,4.71708612]
[1735301566154,11.03830665,191.18,191.17,4.71656829]
[1735301566358,11.03830665,191.18,191.14,5.6588]
[1735301566558,11.03830665,191.18,191.15,4.71697092]
[1735301566758,11.03830665,191.18,191.16,4.71697092]
[1735301566959,11.03830665,191.18,191.14,5.6588]
[1735301567161,11.03830665,191.18,191.15,4.71802884]
[1735301567355,2.6184,191.17,191.16,4.71802884]